bitfinex-derivatives/quotes_SOLF0:USTF0_20230105
["timestamp","ask_amount","ask_price","bid_price","bid_amount"]
[1672909032007,0.04808347,13.163,13.161,17.58]
[1672909034529,0.04808347,13.163,13.159,7.55]
[1672909034736,0.04808347,13.163,13.158,7.58]
[1672909037360,7.58808347,13.163,13.157,0.06813046]
[1672909037572,7.58,13.16,13.151,7.58]
[1672909037884,10.0,13.159,13.152,10.0]
[1672909038624,7.64122674,13.16,13.152,10.0]
[1672909040202,10.0,13.159,13.151,7.64784915]
[1672909040413,7.52,13.157,13.151,0.06784915]
[1672909043038,7.56,13.155,13.146,17.58]
[1672909043353,7.58,13.154,13.146,10.0]
[1672909048295,7.5813252,13.155,13.147,7.56]
[1672909048609,7.5813252,13.155,13.148,10.0]
[1672909049873,0.0613252,13.155,13.151,7.58]
[1672909050186,0.0613252,13.155,13.152,10.0]
[1672909050398,0.06413302,13.158,13.152,10.0]
[1672909052706,0.06413302,13.158,13.152,1894.0]
[1672909052918,0.06413302,13.158,13.156,7.55]
[1672909053124,0.06817291,13.162,13.157,10.0]
[1672909053446,0.06817291,13.162,13.159,10.0]
[1672909053648,0.04808347,13.163,13.159,10.0]
[1672909056389,0.06926794,13.165,13.163,0.12299765]
[1672909056703,7.56,13.167,13.163,0.12299765]
[1672909069102,7.56,13.167,13.163,9.765e-05]
[1672909069319,7.54,13.165,13.163,9.765e-05]
[1672909069528,7.54,13.165,13.159,0.06647232]
[1672909074565,7.54,13.162,13.159,7.232e-05]
[1672909074780,7.52,13.16,13.152,1891.58]
[1672909075516,7.58,13.158,13.151,584.06719519]
[1672909076352,7.58,13.158,13.152,10.0]
[1672909076562,7.58,13.16,13.152,17.58]
[1672909077616,0.06001831,13.161,13.153,7.58]
[1672909077821,0.06001831,13.161,13.154,10.0]
[1672909078037,0.06001831,13.161,13.157,7.58]
[1672909078242,0.06001831,13.161,13.158,10.0]
[1672909078562,7.58,13.162,13.154,10.06091001]
[1672909083393,7.58,13.162,13.154,0.06091001]
[1672909083602,7.58,13.158,13.154,0.06091001]
[1672909088759,7.51212855,13.158,13.154,0.06091001]
[1672909089387,7.64153212,13.161,13.154,0.06091001]
[1672909092335,0.06153212,13.161,13.154,7.61091001]
[1672909092545,0.06153212,13.161,13.155,10.0]
[1672909097061,0.06153212,13.161,13.154,7.61091001]
[1672909097379,7.52,13.156,13.154,0.06091001]
[1672909097590,7.52,13.156,13.151,584.0]
[1672909097795,7.52,13.156,13.15,0.06237289]
[1672909102427,7.39330589,13.156,13.15,0.06237289]
[1672909102850,7.64193187,13.158,13.15,0.06237289]
[1672909103059,0.06193187,13.158,13.15,0.06237289]
[1672909109476,0.06193187,13.158,13.151,15.11]
[1672909109687,0.06193187,13.158,13.152,10.0]
[1672909110843,0.00193187,13.158,13.155,15.2]
[1672909111055,15.21,13.167,13.157,15.24]
[1672909111473,15.21,13.167,13.158,10.0]
[1672909111998,15.27920883,13.167,13.158,10.06108986]
[1672909117465,15.18,13.165,13.158,0.06108986]
[1672909117675,10.0,13.164,13.158,0.06108986]
[1672909120519,15.18,13.165,13.158,0.06108986]
[1672909122515,15.12,13.165,13.158,0.06108986]
[1672909122726,10.0,13.164,13.158,0.06108986]
[1672909123774,25.12,13.164,13.158,0.06108986]
[1672909124188,24.99887497,13.164,13.158,0.06108986]
[1672909125770,15.12,13.164,13.158,0.06108986]
[1672909128300,7.54,13.163,13.158,0.06108986]
[1672909158035,7.6,13.165,13.158,0.06108986]
[1672909158664,7.40720573,13.165,13.158,0.06108986]
[1672909163183,37.935,13.184,13.164,7.62]
[1672909163397,56.89,13.183,13.165,17.6]
[1672909163712,7.62,13.174,13.166,10.0]
[1672909165182,7.62,13.174,13.166,17.58]
[1672909176946,7.54904301,13.174,13.166,17.58]
[1672909182414,0.06555933,13.175,13.168,7.58]
[1672909182725,0.06555933,13.175,13.169,10.0]
[1672909186404,0.06555933,13.175,13.167,7.62]
[1672909186717,7.62,13.174,13.168,10.0]
[1672909188820,0.06555933,13.175,13.168,10.0]
[1672909203529,0.06555933,13.175,13.169,7.6]
[1672909205635,0.06555933,13.175,13.171,7.58]
[1672909205846,0.06555933,13.175,13.172,10.0]
[1672909206161,7.62,13.18,13.175,0.11209027]
[1672909208153,7.62,13.178,13.175,0.11209027]
[1672909208571,7.62,13.178,13.175,9.027e-05]
[1672909208787,7.62,13.176,13.173,0.06380901]
[1672909208998,7.62,13.176,13.17,0.06767976]
[1672909209208,10.0,13.175,13.168,0.06554213]
[1672909210052,7.62,13.173,13.168,0.06554213]
[1672909213310,7.62,13.17,13.162,10.0]
[1672909213519,7.62,13.17,13.161,7.58]
[1672909214464,7.62,13.17,13.161,7.64827664]
[1672909214465,7.68748764,13.17,13.161,7.64827664]
[1672909218671,7.68748764,13.17,13.162,10.0]
[1672909218878,0.06748764,13.17,13.164,7.62]
[1672909219087,0.06748764,13.17,13.165,10.0]
[1672909219510,0.06748764,13.17,13.166,7.6]
[1672909219721,0.06748764,13.17,13.167,10.0]
[1672909220034,0.06561644,13.173,13.167,10.0]
[1672909220554,0.06561644,13.173,13.168,7.62]
[1672909220873,0.06561644,13.173,13.169,10.0]
[1672909226556,7.62,13.176,13.173,0.16080183]
[1672909237799,7.6628815,13.179,13.173,0.16080183]
[1672909238008,0.0628815,13.179,13.173,0.16080183]
[1672909239898,0.03103242,13.173,13.172,7.62]
[1672909243262,0.0628815,13.179,13.173,10.0]
[1672909252830,0.0628815,13.179,13.172,7.62]
[1672909256507,7.62,13.181,13.179,0.1587837]
[1672909268689,7.62,13.182,13.179,0.1587837]
[1672909269327,7.40403953,13.182,13.179,0.1587837]
[1672909276153,7.68836547,13.185,13.179,0.1587837]
[1672909278775,0.06836547,13.185,13.18,7.59]
[1672909278985,0.06836547,13.185,13.181,10.0]
[1672909281825,0.06836547,13.185,13.179,0.1587837]
[1672909283087,0.06836547,13.185,13.18,7.58]
[1672909283299,0.06836547,13.185,13.181,10.0]
[1672909285713,7.68836547,13.185,13.179,0.1587837]
[1672909285927,7.6,13.184,13.179,0.1587837]
[1672909287922,7.62,13.182,13.179,0.1587837]
[1672909290754,7.62,13.182,13.179,8.37e-05]
[1672909291075,10.0,13.181,13.178,0.06144194]
[1672909291388,10.0,13.181,13.175,10.0]
[1672909291389,10.0,13.181,13.175,0.06611214]
[1672909291604,10.0,13.181,13.175,10.06611214]
[1672909292437,10.0,13.181,13.175,0.06611214]
[1672909292754,7.6,13.18,13.175,0.06611214]
[1672909292960,7.62,13.178,13.175,0.06611214]
[1672909293176,7.62,13.178,13.172,0.06932065]
[1672909295484,0.06318116,13.182,13.175,7.59]
[1672909295695,0.06318116,13.182,13.176,10.0]
[1672909296329,0.06318116,13.182,13.176,9.80577286]
[1672909308617,0.06318116,13.182,13.176,17.42577286]
[1672909310517,7.62,13.185,13.182,0.16688181]
[1672909321135,7.62,13.183,13.179,0.06349201]
[1672909328587,7.6,13.184,13.179,0.06349201]
[1672909345620,7.62,13.185,13.179,0.06349201]
[1672909348563,7.62,13.184,13.179,0.06349201]
[1672909358751,7.6,13.183,13.179,0.06349201]
[1672909362220,10.0,13.182,13.179,0.06349201]
[1672909362534,10.0,13.182,13.176,0.06557072]
[1672909362739,10.0,13.18,13.176,0.06557072]
[1672909362954,7.62,13.179,13.176,0.06557072]
[1672909363154,7.62,13.179,13.173,0.06782356]
[1672909365366,10.0,13.18,13.173,0.06782356]
[1672909365367,7.62,13.177,13.173,0.06782356]
[1672909373140,10.0,13.176,13.17,874.0]
[1672909373359,7.62,13.173,13.169,584.0]
[1672909373561,7.62,13.173,13.164,7.62]
[1672909373771,7.62,13.173,13.165,10.0]
[1672909378606,7.62,13.173,13.164,7.69097787]
[1672909380288,7.62,13.173,13.165,10.0]
[1672909385233,7.42555605,13.173,13.165,10.0]
[1672909387647,7.54,13.169,13.164,0.07097787]
[1672909387863,7.62,13.167,13.164,0.07097787]
[1672909388065,7.62,13.167,13.161,0.06180862]
[1672909388280,7.62,13.167,13.161,10.06180862]
[1672909388491,7.62,13.167,13.161,0.06180862]
[1672909390171,7.67130174,13.169,13.161,0.06180862]
[1672909391648,7.67130174,13.169,13.161,10.06180862]
[1672909396485,7.67130174,13.169,13.161,0.06180862]
[1672909396800,7.54,13.167,13.161,0.06180862]
[1672909401837,10.0,13.166,13.161,8.62e-06]
[1672909402052,7.54,13.162,13.146,7.62]
[1672909402258,7.6,13.156,13.148,7.58]
[1672909402673,7.6,13.156,13.149,10.0]
[1672909407409,7.6,13.156,13.148,7.64652561]
[1672909412555,7.62,13.153,13.148,0.06652561]
[1672909414134,7.6,13.151,13.148,0.06652561]
[1672909414340,7.6,13.151,13.146,584.0]
[1672909414551,7.6,13.151,13.145,0.06814325]
[1672909417914,50.06129987,13.154,13.145,0.06814325]
[1672909417915,10.0,13.147,13.145,0.06814325]
[1672909418119,10.0,13.147,13.141,10.06765622]
[1672909418330,7.62,13.148,13.141,10.06765622]
[1672909420229,0.0605714,13.151,13.145,7.6]
[1672909420540,0.0605714,13.151,13.146,10.0]
[1672909422010,7.62,13.149,13.144,0.06705972]
[1672909423481,7.62,13.147,13.144,0.06705972]
[1672909423692,7.62,13.147,13.141,1844.06521523]
[1672909425159,7.62,13.149,13.141,1844.06521523]
[1672909427793,15.26,13.15,13.141,1844.06521523]
[1672909428628,15.12,13.148,13.141,1844.06521523]
[1672909429893,15.12,13.145,13.141,1834.06521523]
[1672909430106,15.12,13.145,13.141,0.06521523]
[1672909432946,15.18,13.144,13.141,0.06521523]
[1672909433155,15.18,13.144,13.138,0.06117168]
[1672909436511,15.26,13.142,13.138,0.06117168]
[1672909437465,15.14,13.144,13.138,0.06117168]
[1672909437882,10.0,13.143,13.138,0.06117168]
[1672909438093,15.18,13.142,13.138,0.06117168]
[1672909438304,10.0,13.143,13.138,0.06117168]
[1672909438516,15.26,13.144,13.138,0.06117168]
[1672909441355,15.32374932,13.146,13.138,0.06117168]
[1672909446086,15.26,13.144,13.138,0.06117168]
[1672909446296,10.0,13.143,13.138,0.06117168]
[1672909447035,15.26,13.144,13.138,0.06117168]
[1672909449769,10.0,13.143,13.138,0.06117168]
[1672909450397,15.14,13.142,13.138,0.06117168]
[1672909450603,10.0,13.141,13.138,0.06117168]
[1672909450814,10.0,13.141,13.135,0.06230697]
[1672909451028,15.18,13.14,13.135,0.06230697]
[1672909451444,25.26,13.139,13.128,15.26]
[1672909451654,10.0,13.138,13.129,10.0]
[1672909451867,15.14,13.134,13.123,15.26]
[1672909452175,10.0,13.133,13.124,10.0]
[1672909452386,10.0,13.133,13.124,10.06065317]
[1672909452601,10.06281963,13.133,13.124,10.06065317]
[1672909453863,0.06281963,13.133,13.124,10.06065317]
[1672909456178,0.06281963,13.133,13.124,0.06065317]
[1672909456386,10.06281963,13.133,13.124,0.06065317]
[1672909457433,0.06281963,13.133,13.124,10.06065317]
[1672909457650,0.06281963,13.133,13.126,10.0]
[1672909459651,0.06281963,13.133,13.124,25.32065317]
[1672909459861,10.06281963,13.133,13.124,25.32065317]
[1672909460384,0.06281963,13.133,13.124,25.32065317]
[1672909461853,10.06281963,13.133,13.124,25.32065317]
[1672909463646,9.9277338,13.133,13.124,25.32065317]
[1672909463845,15.26,13.134,13.124,25.32065317]
[1672909464589,15.32183581,13.134,13.124,25.32065317]
[1672909468591,15.12,13.133,13.124,10.06065317]
[1672909477208,14.89425663,13.133,13.124,10.06065317]
[1672909481512,15.18,13.127,13.124,0.06065317]
[1672909481722,15.14,13.125,13.121,0.06490489]
[1672909481928,15.14,13.125,13.121,10.06490489]
[1672909482242,0.0709852,13.13,13.124,15.26]
[1672909482453,0.0709852,13.13,13.126,15.26]
[1672909482663,0.0709852,13.13,13.127,10.0]
[1672909482876,0.06982882,13.133,13.127,10.0]
[1672909483086,0.07038031,13.135,13.127,10.0]
[1672909487079,0.07038031,13.135,13.127,25.26]
[1672909488350,7.72038031,13.135,13.127,10.0]
[1672909489819,7.72038031,13.135,13.126,7.65]
[1672909491391,7.48958451,13.135,13.127,10.0]
[1672909492340,7.65,13.132,13.127,10.0]
[1672909492863,7.65,13.132,13.125,0.07000517]
[1672909495075,7.59,13.128,13.125,0.07000517]
[1672909495275,7.59,13.128,13.123,10.0]
[1672909496016,7.59,13.128,13.122,594.06571607]
[1672909496227,7.65,13.127,13.122,584.06571607]
[1672909496438,7.59,13.125,13.122,0.06571607]
[1672909496649,7.59,13.125,13.119,10.06724853]
[1672909498442,0.06241657,13.127,13.119,10.06724853]
[1672909498443,7.71241657,13.127,13.119,10.06724853]
[1672909507271,7.71241657,13.127,13.119,9.83485724]
[1672909511461,7.71241657,13.127,13.119,0.06724853]
[1672909513152,0.06241657,13.127,13.119,17.71724853]
[1672909513357,0.06241657,13.127,13.12,10.0]
[1672909513782,0.06241657,13.127,13.121,7.65]
[1672909514098,0.06241657,13.127,13.122,10.0]
[1672909516303,0.06241657,13.127,13.12,10.0]
[1672909517038,7.65,13.126,13.119,10.06724853]
[1672909519563,0.06241657,13.127,13.119,10.06724853]
[1672909519564,0.06241657,13.127,13.12,7.65]
[1672909519773,0.06241657,13.127,13.121,10.0]
[1672909521035,7.65,13.129,13.127,0.14809725]
[1672909521870,7.65,13.129,13.121,10.0]
[1672909522400,7.65,13.125,13.12,0.06043578]
[1672909523871,7.65,13.123,13.12,0.06043578]
[1672909524077,7.65,13.123,13.117,10.1627355]
[1672909524605,7.59,13.122,13.117,0.1627355]
[1672909527337,7.71041878,13.124,13.117,0.1627355]
[1672909533211,0.06041878,13.124,13.117,0.1627355]
[1672909533418,7.65,13.122,13.117,0.1627355]
[1672909535840,0.06041878,13.124,13.117,0.1627355]
[1672909536050,7.59,13.125,13.124,0.17548491]
[1672909536471,7.65,13.127,13.125,7.59]
[1672909536789,7.65,13.131,13.125,7.59]
[1672909537627,7.65,13.127,13.124,0.17548491]
[1672909539208,7.59,13.126,13.124,0.17548491]
[1672909542879,0.06964624,13.13,13.124,0.17548491]
[1672909544463,0.06964624,13.13,13.124,7.82548491]
[1672909544672,0.06964624,13.13,13.125,10.0]
[1672909547085,57.04,13.149,13.129,57.65]
[1672909547295,7.65,13.143,13.134,7.65]
[1672909547506,7.65,13.143,13.135,10.0]
[1672909548035,7.59,13.141,13.135,10.0]
[1672909549297,15.28,13.142,13.135,10.0]
[1672909556441,0.06094692,13.143,13.135,25.24]
[1672909561170,15.28,13.145,13.143,0.12970716]
[1672909566733,15.28,13.148,13.143,0.12970716]
[1672909567370,15.22,13.146,13.143,0.12970716]
[1672909576515,15.28,13.148,13.143,0.12970716]
[1672909576725,15.07855253,13.148,13.143,0.12970716]
[1672909600375,15.28,13.15,13.143,0.12970716]
[1672909601325,15.28,13.149,13.143,0.12970716]
[1672909604270,15.28,13.15,13.143,0.12970716]
[1672909605949,15.28,13.152,13.143,0.12970716]
[1672909606163,15.28,13.152,13.143,10.19770682]
[1672909608898,7.63,13.151,13.143,17.75770682]
[1672909614565,7.63,13.149,13.143,0.19770682]
[1672909621610,7.63,13.149,13.143,0.06799966]
[1672909626857,7.59,13.152,13.143,7.69799966]
[1672909627701,7.65799966,13.152,13.143,7.56512479]
[1672909628653,7.65799966,13.152,13.143,7.6331079]
[1672909632748,7.63,13.15,13.143,0.06798311]
[1672909632959,7.63,13.148,13.143,0.06798311]
[1672909634217,7.63,13.146,13.143,0.06798311]
[1672909634430,7.63,13.146,13.14,0.06801711]
[1672909634642,7.63,13.146,13.139,10.0]
[1672909637474,7.63,13.142,13.138,0.06010463]
[1672909641477,7.63,13.139,13.138,4.63e-06]
[1672909641687,7.63,13.139,13.129,584.0]
[1672909641893,7.63,13.13,13.129,584.0]
[1672909642104,7.63,13.13,13.122,1834.0]
[1672909642311,7.63,13.127,13.118,7.56]
[1672909642524,7.69351481,13.127,13.123,10.0]
[1672909643895,7.69351481,13.127,13.119,10.0]
[1672909647152,7.69351481,13.127,13.118,7.62783293]
[1672909648833,7.59,13.124,13.118,0.06783293]
[1672909649251,10.0,13.123,13.118,0.06783293]
[1672909651774,15.19,13.125,13.118,0.06783293]
[1672909654821,15.18,13.123,13.118,0.06783293]
[1672909655032,15.07,13.122,13.118,0.06783293]
[1672909655237,10.0,13.121,13.118,0.06783293]
[1672909655443,10.0,13.121,13.117,0.1]
[1672909656183,15.07,13.122,13.117,0.1]
[1672909667744,15.07,13.12,13.113,584.0]
[1672909668052,10.0,13.119,13.113,584.0]
[1672909668268,15.18,13.118,13.113,584.0]
[1672909668477,10.0,13.117,13.108,15.14]
[1672909668789,17.6,13.117,13.11,0.07120591]
[1672909669107,7.67060239,13.119,13.11,7.66120591]
[1672909670043,7.67060239,13.119,13.113,10.0]
[1672909671314,7.67060239,13.119,13.11,7.66120591]
[1672909672260,7.6,13.117,13.11,0.07120591]
[1672909672681,7.6,13.115,13.11,0.07120591]
[1672909673413,7.58,13.113,13.11,0.07120591]
[1672909673623,7.58,13.113,13.107,584.06242547]
[1672909674676,7.58,13.109,13.107,584.06242547]
[1672909674888,7.58,13.109,13.103,10.06009291]
[1672909675299,7.6,13.108,13.103,0.06009291]
[1672909675723,7.6,13.109,13.103,0.06009291]
[1672909679188,7.55,13.106,13.103,0.06009291]
[1672909679401,7.58,13.104,13.1,10.06527766]
[1672909679611,7.6,13.102,13.1,10.06527766]
[1672909679826,7.6,13.102,13.1,10.0]
[1672909680455,7.6,13.102,13.096,0.06928492]
[1672909682554,0.0657105,13.104,13.101,50.0]
[1672909682764,7.56,13.105,13.101,50.0]
[1672909683396,7.56,13.105,13.097,10.0]
[1672909683612,7.56,13.105,13.101,50.0]
[1672909684031,7.56,13.105,13.102,10.0]
[1672909684452,7.64515727,13.107,13.102,10.0]
[1672909684981,0.06515727,13.107,13.102,10.0]
[1672909686234,5.727e-05,13.107,13.105,7.57]
[1672909686454,7.56,13.114,13.106,10.0]
[1672909687816,7.58,13.112,13.106,10.0]
[1672909688546,7.56,13.114,13.106,10.0]
[1672909688754,0.06023758,13.115,13.112,10.0]
[1672909688963,7.55,13.116,13.112,10.0]
[1672909689919,7.55,13.116,13.111,50.0]
[1672909693174,7.55,13.116,13.112,10.0]
[1672909693799,7.55,13.116,13.109,0.06055723]
[1672909694429,7.58,13.114,13.109,0.06055723]
[1672909694646,7.6,13.112,13.109,0.06055723]
[1672909694854,7.6,13.112,13.106,0.06180934]
[1672909695902,7.6,13.11,13.106,0.06180934]
[1672909700423,7.52782694,13.11,13.106,0.06180934]
[1672909703261,7.6,13.112,13.106,0.06180934]
[1672909704624,7.55,13.11,13.106,0.06180934]
[1672909705992,7.6,13.108,13.106,0.06180934]
[1672909706197,7.55,13.107,13.102,0.07036009]
[1672909706523,10.0,13.104,13.1,0.0700694]
[1672909706727,10.0,13.104,13.097,10.06051267]
[1672909706937,7.56,13.105,13.097,10.06051267]
[1672909707673,7.56,13.105,13.097,0.06051267]
[1672909708094,7.6,13.103,13.097,0.06051267]
[1672909709457,7.56,13.098,13.084,7.57]
[1672909709678,7.58,13.085,13.058,584.0]
[1672909709986,57.32,13.084,13.07,50.0]
[1672909710301,57.3,13.09,13.06,50.0]
[1672909710512,7.6,13.072,13.07,50.06765764]
[1672909710726,7.55,13.074,13.066,0.06064759]
[1672909710925,7.55,13.074,13.07,50.0]
[1672909711137,7.55,13.074,13.071,10.0]
[1672909711344,7.6,13.072,13.07,50.0]
[1672909711554,7.6,13.071,13.068,0.06852026]
[1672909711764,7.6,13.069,13.065,0.07142582]
[1672909711978,7.6,13.067,13.065,2.87874628]
[1672909712299,7.6,13.067,13.065,2.80732046]
[1672909712503,7.6,13.067,13.064,2.80732046]
[1672909712715,0.06737187,13.071,13.066,7.55]
[1672909712929,7.6,13.078,13.07,50.0]
[1672909713131,15.23,13.079,13.071,10.0]
[1672909713557,25.28,13.081,13.071,12.80732046]
[1672909713770,15.28,13.081,13.071,12.80732046]
[1672909713978,0.06356968,13.081,13.079,50.0]
[1672909714188,0.06094725,13.085,13.079,65.3]
[1672909714395,15.3,13.089,13.08,10.0]
[1672909714609,10.0,13.088,13.08,10.0]
[1672909714815,25.23,13.088,13.08,10.0]
[1672909715031,25.23,13.088,13.079,50.0]
[1672909715351,25.23,13.088,13.08,10.0]
[1672909715868,15.3,13.086,13.08,10.0]
[1672909716083,15.23,13.081,13.079,0.06193588]
[1672909716293,15.23,13.081,13.075,0.06047358]
[1672909716504,15.23,13.081,13.073,0.06577349]
[1672909716714,25.3,13.083,13.073,0.06577349]
[1672909717137,15.3,13.083,13.073,12.87143175]
[1672909717658,15.3,13.083,13.074,2.80565826]
[1672909718079,10.0,13.086,13.077,15.3]
[1672909718288,15.23,13.087,13.079,50.0]
[1672909718607,15.3,13.089,13.08,10.0]
[1672909718815,10.0,13.088,13.08,10.06171882]
[1672909719230,15.23,13.087,13.08,10.06171882]
[1672909721442,15.3,13.089,13.08,10.06171882]
[1672909721654,15.3,13.089,13.08,1844.06171882]
[1672909722380,15.3,13.089,13.08,1834.06171882]
[1672909722595,15.28,13.087,13.08,1834.06171882]
[1672909723122,15.28,13.087,13.081,10.0]
[1672909723335,15.28,13.09,13.081,10.0]
[1672909723544,15.28,13.09,13.081,10.0713573]
[1672909726806,15.3,13.092,13.082,15.3]
[1672909727006,15.23,13.083,13.043,584.0]
[1672909727221,15.3,13.078,13.058,50.0]
[1672909727432,10.0,13.077,13.068,50.0]
[1672909727750,10.0,13.082,13.069,10.0]
[1672909727961,15.23199406,13.08,13.069,25.17]
[1672909728173,15.23199406,13.08,13.071,0.06600871]
[1672909729537,10.0,13.079,13.071,0.06600871]
[1672909729749,15.17,13.075,13.071,0.06600871]
[1672909729958,15.3,13.073,13.071,0.06600871]
[1672909730274,15.3,13.073,13.07,2.80587535]
[1672909730483,15.3,13.073,13.067,0.06067218]
[1672909730905,15.3,13.075,13.067,0.06067218]
[1672909731111,10.0,13.074,13.067,0.06067218]
[1672909731327,15.28,13.073,13.067,0.06067218]
[1672909733107,15.30036692,13.077,13.069,15.3]
[1672909733323,0.07036692,13.077,13.07,10.0]
[1672909733529,0.07036692,13.077,13.07,1844.0]
[1672909733843,0.07036692,13.077,13.071,2.80587535]
[1672909734054,0.07036692,13.077,13.071,18.10587535]
[1672909734373,0.07036692,13.077,13.072,10.0]
[1672909734583,0.07036692,13.077,13.072,12.80587535]
[1672909734995,0.07036692,13.077,13.073,2.80587535]
[1672909741309,15.3,13.081,13.077,0.13792187]
[1672909746772,10.0,13.077,13.075,2.80587535]
[1672909746986,10.0,13.075,13.065,10.0]
[1672909747189,15.23,13.074,13.066,2.80743308]
[1672909749503,15.23,13.074,13.065,10.06713318]
[1672909750764,0.06583455,13.075,13.068,50.0]
[1672909750970,0.06583455,13.075,13.069,10.0]
[1672909752133,0.06583455,13.075,13.068,60.0]
[1672909752346,0.06583455,13.075,13.068,10.0]
[1672909752549,15.34583455,13.075,13.068,60.0]
[1672909753710,15.34583455,13.075,13.068,10.0]
[1672909753918,0.06583455,13.075,13.068,10.0]
[1672909755185,15.23,13.08,13.07,15.21]
[1672909755499,10.0,13.079,13.071,10.0]
[1672909756234,15.3,13.078,13.071,10.0]
[1672909756443,15.3,13.076,13.07,0.07062667]
[1672909756655,15.3,13.075,13.07,0.07062667]
[1672909756857,10.0,13.074,13.07,0.07062667]
[1672909757801,15.3,13.075,13.07,0.07062667]
[1672909758966,25.3,13.077,13.07,0.07062667]
[1672909759283,15.3,13.077,13.07,0.07062667]
[1672909760332,15.28,13.075,13.07,0.07062667]
[1672909761273,10.0,13.072,13.07,0.07062667]
[1672909761486,10.0,13.072,13.067,50.0]
[1672909761798,15.28,13.075,13.067,50.0]
[1672909762013,15.28,13.075,13.068,10.0]
[1672909762221,57.1841,13.077,13.068,10.0]
[1672909762433,15.28,13.079,13.069,15.17]
[1672909762645,15.28,13.079,13.07,10.0]
[1672909762853,15.3,13.081,13.071,15.3]
[1672909763062,15.3,13.081,13.072,10.0]
[1672909764648,15.3,13.079,13.072,10.0]
[1672909768219,15.3,13.079,13.071,0.06313091]
[1672909768640,60.9972,13.082,13.072,15.3]
[1672909768848,15.3,13.084,13.074,15.3]
[1672909769059,10.0,13.083,13.075,10.0]
[1672909769479,15.3,13.084,13.075,10.0]
[1672909769895,10.0,13.083,13.075,10.0]
[1672909770106,15.28,13.082,13.074,0.06934667]
[1672909771894,15.23,13.085,13.075,15.3]
[1672909772211,15.3,13.087,13.077,65.21]
[1672909772525,15.3,13.087,13.078,10.0]
[1672909772733,25.28,13.086,13.078,10.0]
[1672909773472,15.28,13.086,13.078,10.0]
[1672909774943,15.3,13.087,13.078,10.0]
[1672909776937,10.0,13.094,13.079,15.3]
[1672909776938,15.17,13.089,13.079,15.3]
[1672909777150,60.8901,13.091,13.08,25.17]
[1672909777674,60.8901,13.091,13.081,10.0]
[1672909780090,91.3801,13.091,13.081,10.0]
[1672909781143,91.29894568,13.091,13.081,10.0]
[1672909783983,45.79,13.091,13.081,10.0]
[1672909784716,45.82,13.094,13.082,45.7]
[1672909784930,45.82,13.094,13.083,10.06219037]
[1672909785769,45.82,13.095,13.084,45.82]
[1672909785977,45.82,13.095,13.085,10.06021528]
[1672909786188,45.79,13.097,13.086,45.39]
[1672909786400,45.79,13.097,13.087,10.07082007]
[1672909787132,45.82,13.099,13.088,45.7]
[1672909787346,45.82,13.101,13.089,55.82]
[1672909787662,10.0,13.1,13.09,10.0669073]
[1672909788187,45.82,13.101,13.09,10.0669073]
[1672909789029,45.79,13.103,13.092,45.39]
[1672909789238,45.79,13.103,13.093,10.06086479]
[1672909789447,45.82,13.105,13.093,55.76086479]
[1672909790175,10.0,13.108,13.096,45.82]
[1672909790176,45.82,13.107,13.096,45.82]
[1672909790390,10.0,13.106,13.097,10.06402977]